{"text_format":"1","workbook":"xlsx","n_sheets":2,"sheets":["الرئيسية","ورقة2"],"not_rendered":{"charts":0,"images":0,"macros":1,"external_links":0,"defined_names":1,"comments":0,"pivot_tables":0},"unopened":[],"bounds":{"document_bytes":16777216,"sheet_cells":100000,"rows_first":2000,"rows_last":500,"rows_between":2000,"halvings":0,"cell_chars":16384,"cell_head_chars":4096},"cells_cut":0,"cells_raw":0,"read":"whole","date_system":"1900"}

{"sheet":"الرئيسية","index":0,"n_rows":49,"n_cols":21,"rows_kept":49,"cut":false,"hidden":false,"merged":[[5,6,5,13],[6,6,6,13],[0,6,0,15],[7,6,7,13]]}
[1,"إبراهيم",null,null,"عدد الأسماء",{"$f":"ROUNDUP(SUM(IF(COUNTIF(aa,aa)=0,\"\",1/COUNTIF(aa,aa))),0)","v":10},"لماذا يظهر العدد فيه كسور خطا وما الحل  لانه يحسب المعادلات",null,null,null,null,null,null,null,null,null,null,null,null,null,"محمد"]
[null,{"$f":"IF(B1=0,\"\",B1)","v":"إبراهيم"},null,null,null,null,null,null,null,null,null,null,null,null,null,null,null,null,null,null,"احمد"]
[null,{"$f":"IF(B2=0,\"\",B2)","v":"إبراهيم"},null,null,null,null,null,null,null,null,null,null,null,null,null,null,null,null,null,null,"هاني"]
[null,"إبراهيم",null,null,null,null,null,null,null,null,null,null,null,null,null,null,null,null,null,null,"رضا"]
[2,"خالد",null,null,null,null,null,null,null,null,null,null,null,null,null,null,null,null,null,null,"رامي"]
[null,"خالد",null,null,null,null,"كيف اتنقل بين الصفوف بظغطة زر والتوقف عند كل اسم",null,null,null,null,null,null,null,null,null,null,null,null,null,"فيصل"]
[null,"خالد",null,null,null,null,"وكيف منع  قبول تكرار من قائمه منسدلة من غير التنسيق الشرطي",null,null,null,null,null,null,null,null,null,null,null,null,null,"كمال"]
[null,"خالد",null,null,null,null,"كيف الذهاب لاخر صف فيه كتابه وليسى معادله في عامود B",null,null,null,null,null,null,null,null,null,null,null,null,null,"عمر"]
[null,"خالد",null,null,null,null,null,null,null,null,null,null,null,null,null,null,null,null,null,null,"بكر"]
[3,"احمد",null,null,null,null,null,null,null,null,null,null,null,null,null,null,null,null,null,null,"وئل"]
[null,"احمد",null,null,null,null,null,null,null,null,null,null,null,null,null,null,null,null,null,null,"مصطفى"]
[null,"احمد",null,null,null,null,null,null,null,null,null,null,null,null,null,null,null,null,null,null,"ماهر"]
[null,"احمد",null,null,null,null,null,null,null,null,null,null,null,null,null,null,null,null,null,null,"سعيد"]
[null,"احمد",null,null,null,null,null,null,null,null,null,null,null,null,null,null,null,null,null,null,"صالح"]
[4,"كمال",null,null,null,null,null,null,null,null,null,null,null,null,null,null,null,null,null,null,"عبدالله"]
[null,"كمال",null,null,null,null,null,null,null,null,null,null,null,null,null,null,null,null,null,null,"إبراهيم"]
[null,"كمال",null,null,null,null,null,null,null,null,null,null,null,null,null,null,null,null,null,null,"ماجد"]
[null,"كمال",null,null,null,null,null,null,null,null,null,null,null,null,null,null,null,null,null,null,"خالد"]
[null,"كمال",null,null,null,null,null,null,null,null,null,null,null,null,null,null,null,null,null,null,"فهد"]
[5,"ماجد",null,null,null,null,null,null,null,null,null,null,null,null,null,null,null,null,null,null,"محمود"]
[null,"ماجد"]
[null,"ماجد"]
[null,"ماجد"]
[null,"ماجد"]
[6,"فهد"]
[null,"فهد"]
[null,"فهد"]
[null,"فهد"]
[null,"فهد"]
[7]
[null,""]
[null,""]
[null,""]
[null,""]
[8,"صالح"]
[null,"صالح"]
[null,"صالح"]
[null,"صالح"]
[null,"صالح"]
[9,"عبدالله"]
[null,"عبدالله"]
[null,"عبدالله"]
[null,"عبدالله"]
[null,"عبدالله"]
[10,"بكر"]
[null,"بكر"]
[null,"بكر"]
[null,"بكر"]
[null,"بكر"]

{"sheet":"ورقة2","index":1,"n_rows":0,"n_cols":0,"rows_kept":0,"cut":false,"hidden":false,"merged":[]}